[Event "Early-Titled-Tuesday-Blitz-April-16-2024"]
[Site "Chess.com"]
[Date "2024.04.16"]
[Round "6"]
[White "ViktoriyaTarasova"]
[Black "NovoselovRoman"]
[Result "0-1"]
[WhiteElo "2361"]
[BlackElo "2593"]
[TimeControl "180+1"]
[EndTime "9:06:05 PDT"]
[Termination "NovoselovRoman won by resignation"]

1. d4 {[%clk 0:02:49.8]} 1... Nf6 {[%clk 0:02:59.8]} 2. c3 {[%clk 0:02:50.2]}
2... g6 {[%clk 0:03:00.2]} 3. Nf3 {[%clk 0:02:49.9]} 3... Bg7 {[%clk 0:03:00.8]}
4. Bf4 {[%clk 0:02:50.5]} 4... O-O {[%clk 0:03:01.5]} 5. h3 {[%clk 0:02:50.2]}
5... d6 {[%clk 0:03:02.2]} 6. e3 {[%clk 0:02:50.7]} 6... c5 {[%clk 0:03:02]} 7.
Nbd2 {[%clk 0:02:51.2]} 7... b6 {[%clk 0:02:59]} 8. Qc2 {[%clk 0:02:51.4]} 8...
Bb7 {[%clk 0:02:59.4]} 9. Be2 {[%clk 0:02:51.9]} 9... Nbd7 {[%clk 0:02:59.4]}
10. O-O {[%clk 0:02:52.4]} 10... Rc8 {[%clk 0:02:59.3]} 11. a4 {[%clk
0:02:45.9]} 11... Nd5 {[%clk 0:02:58.2]} 12. Bh2 {[%clk 0:02:44.4]} 12... cxd4
{[%clk 0:02:57.4]} 13. exd4 {[%clk 0:02:44]} 13... a5 {[%clk 0:02:57.4]} 14. Qb3
{[%clk 0:02:42.7]} 14... Qc7 {[%clk 0:02:51.9]} 15. Rfe1 {[%clk 0:02:42.8]}
15... N7f6 {[%clk 0:02:44.5]} 16. Bb5 {[%clk 0:02:41.9]} 16... Rfd8 {[%clk
0:02:31.4]} 17. Re2 {[%clk 0:02:41.9]} 17... e6 {[%clk 0:02:31.7]} 18. Rae1
{[%clk 0:02:41.1]} 18... Ne7 {[%clk 0:02:31]} 19. Qc2 {[%clk 0:02:30.8]} 19...
Nfd5 {[%clk 0:02:30.4]} 20. Qb1 {[%clk 0:02:27.6]} 20... Bh6 {[%clk 0:02:25.1]}
21. Nc4 {[%clk 0:02:26.2]} 21... Nf4 {[%clk 0:02:22.8]} 22. Bxf4 {[%clk
0:02:19.8]} 22... Bxf4 {[%clk 0:02:23.7]} 23. Nfd2 {[%clk 0:02:04.1]} 23... h5
{[%clk 0:02:21.2]} 24. Na3 {[%clk 0:01:57.6]} 24... Nf5 {[%clk 0:02:17.2]} 25.
Ne4 {[%clk 0:01:57.4]} 25... Kg7 {[%clk 0:02:14.7]} 26. Bd3 {[%clk 0:01:56.4]}
26... Bh6 {[%clk 0:02:14.1]} 27. Nb5 {[%clk 0:01:56.3]} 27... Qe7 {[%clk
0:02:12.4]} 28. f3 {[%clk 0:01:54.2]} 28... h4 {[%clk 0:02:08.8]} 29. b4 {[%clk
0:01:53.6]} 29... Bf4 {[%clk 0:02:06]} 30. bxa5 {[%clk 0:01:51.4]} 30... bxa5
{[%clk 0:02:06.9]} 31. c4 {[%clk 0:01:48.4]} 31... e5 {[%clk 0:01:59]} 32. d5
{[%clk 0:01:41.2]} 32... Ba6 {[%clk 0:01:55.1]} 33. Qb2 {[%clk 0:01:36]} 33...
Qb7 {[%clk 0:01:42.5]} 34. Nec3 {[%clk 0:01:35.3]} 34... Qb6+ {[%clk 0:01:39.7]}
35. Rf2 {[%clk 0:01:30]} 35... Bg3 {[%clk 0:01:35.1]} 36. Kf1 {[%clk 0:01:26.4]}
36... Ne3+ {[%clk 0:01:29.5]} 37. Kg1 {[%clk 0:01:25.7]} 37... Nxc4 {[%clk
0:01:28.6]} 38. Bxc4 {[%clk 0:01:21.7]} 38... Rxc4 {[%clk 0:01:29.5]} 39. Ne4
{[%clk 0:01:22.2]} 39... Rb4 {[%clk 0:01:25.4]} 40. Qc3 {[%clk 0:01:14.5]} 40...
Rxe4 {[%clk 0:01:23.8]} 0-1

[Event "Early-Titled-Tuesday-Blitz-April-16-2024"]
[Site "Chess.com"]
[Date "2024.04.16"]
[Round "6"]
[White "Jospem"]
[Black "dmosesov"]
[Result "1-0"]
[WhiteElo "3061"]
[BlackElo "2632"]
[TimeControl "180+1"]
[EndTime "9:06:10 PDT"]
[Termination "Jospem won by resignation"]

1. e4 {[%clk 0:03:00.9]} 1... e5 {[%clk 0:02:54.6]} 2. Nf3 {[%clk 0:03:01.1]}
2... Nc6 {[%clk 0:02:55.1]} 3. Nc3 {[%clk 0:03:01.9]} 3... Nf6 {[%clk
0:02:54.2]} 4. h3 {[%clk 0:03:02.6]} 4... Bb4 {[%clk 0:02:47.8]} 5. a3 {[%clk
0:03:02.6]} 5... Bxc3 {[%clk 0:02:46.9]} 6. dxc3 {[%clk 0:03:03.5]} 6... O-O
{[%clk 0:02:46.6]} 7. Bd3 {[%clk 0:03:03.4]} 7... d5 {[%clk 0:02:38.2]} 8. Bg5
{[%clk 0:03:03]} 8... dxe4 {[%clk 0:02:36.5]} 9. Bxf6 {[%clk 0:03:03.6]} 9...
Qxf6 {[%clk 0:02:37.4]} 10. Bxe4 {[%clk 0:03:04.3]} 10... Bf5 {[%clk 0:02:33.3]}
11. Qe2 {[%clk 0:03:04.2]} 11... Bxe4 {[%clk 0:02:32.1]} 12. Qxe4 {[%clk
0:03:05.1]} 12... Qg6 {[%clk 0:02:27.8]} 13. Qxg6 {[%clk 0:03:04.3]} 13... hxg6
{[%clk 0:02:28.7]} 14. O-O-O {[%clk 0:03:05]} 14... Rad8 {[%clk 0:02:28.3]} 15.
b4 {[%clk 0:03:05.4]} 15... a6 {[%clk 0:02:26.6]} 16. c4 {[%clk 0:03:04.4]}
16... f6 {[%clk 0:02:21.1]} 17. c3 {[%clk 0:03:04.2]} 17... Kf7 {[%clk
0:02:20.4]} 18. Kc2 {[%clk 0:03:04.4]} 18... g5 {[%clk 0:02:17.5]} 19. Nd2
{[%clk 0:03:04.1]} 19... f5 {[%clk 0:01:48.5]} 20. Rhe1 {[%clk 0:02:56.2]} 20...
Kf6 {[%clk 0:01:42.5]} 21. Nf1 {[%clk 0:02:53.2]} 21... Rxd1 {[%clk 0:01:40.4]}
22. Rxd1 {[%clk 0:02:54.1]} 22... Rd8 {[%clk 0:01:40.8]} 23. Re1 {[%clk
0:02:54.8]} 23... g6 {[%clk 0:01:35.6]} 24. Ne3 {[%clk 0:02:54.6]} 24... Ne7
{[%clk 0:01:35.9]} 25. a4 {[%clk 0:02:54.5]} 25... c6 {[%clk 0:01:18.4]} 26. Rb1
{[%clk 0:02:50.3]} 26... Ke6 {[%clk 0:00:52.6]} 27. Re1 {[%clk 0:02:28.2]} 27...
Kf6 {[%clk 0:00:50.3]} 28. f3 {[%clk 0:02:28.4]} 28... Nc8 {[%clk 0:00:46.2]}
29. c5 {[%clk 0:02:28.4]} 29... Ne7 {[%clk 0:00:43.6]} 30. Nc4 {[%clk
0:02:28.5]} 30... Rd5 {[%clk 0:00:31.7]} 31. Nd6 {[%clk 0:02:27.1]} 31... b6
{[%clk 0:00:22.7]} 32. Ne8+ {[%clk 0:02:27.5]} 32... Kf7 {[%clk 0:00:22.7]} 33.
Nc7 {[%clk 0:02:27.9]} 33... bxc5 {[%clk 0:00:11.3]} 34. Nxd5 {[%clk 0:02:28.2]}
34... Nxd5 {[%clk 0:00:12.2]} 35. bxc5 {[%clk 0:02:29]} 35... Ke6 {[%clk
0:00:12.7]} 36. Rb1 {[%clk 0:02:28.7]} 36... Ne3+ {[%clk 0:00:12.7]} 37. Kd2
{[%clk 0:02:27.6]} 37... Nxg2 {[%clk 0:00:13.6]} 38. Rb6 {[%clk 0:02:28.1]}
38... Nh4 {[%clk 0:00:13.1]} 39. Ke2 {[%clk 0:02:28.2]} 39... Kd5 {[%clk
0:00:12.7]} 40. Rxa6 {[%clk 0:02:28.6]} 40... Kxc5 {[%clk 0:00:13.3]} 41. Ra8
{[%clk 0:02:29]} 41... e4 {[%clk 0:00:13]} 42. fxe4 {[%clk 0:02:29.1]} 42...
fxe4 {[%clk 0:00:13.9]} 43. a5 {[%clk 0:02:30]} 43... Nf5 {[%clk 0:00:12.9]} 44.
Rb8 {[%clk 0:02:28.7]} 44... Nd6 {[%clk 0:00:05.8]} 45. a6 {[%clk 0:02:29.1]}
45... Nb5 {[%clk 0:00:05.3]} 46. Rxb5+ {[%clk 0:02:27.9]} 1-0

[Event "Early-Titled-Tuesday-Blitz-April-16-2024"]
[Site "Chess.com"]
[Date "2024.04.16"]
[Round "6"]
[White "GAO"]
[Black "Chess4always"]
[Result "1-0"]
[WhiteElo "2327"]
[BlackElo "2005"]
[TimeControl "180+1"]
[EndTime "9:06:21 PDT"]
[Termination "GAO won by resignation"]

1. a3 {[%clk 0:02:52.8]} 1... d5 {[%clk 0:02:56.7]} 2. Nf3 {[%clk 0:02:50.6]}
2... c6 {[%clk 0:02:57.4]} 3. b4 {[%clk 0:02:49.4]} 3... Nf6 {[%clk 0:02:55.1]}
4. Bb2 {[%clk 0:02:50.3]} 4... Bg4 {[%clk 0:02:53.4]} 5. Ne5 {[%clk 0:02:50.2]}
5... Bh5 {[%clk 0:02:49.5]} 6. c4 {[%clk 0:02:48.7]} 6... e6 {[%clk 0:02:49.1]}
7. g3 {[%clk 0:02:42.4]} 7... Nbd7 {[%clk 0:02:49.2]} 8. Bg2 {[%clk 0:02:40.8]}
8... Be7 {[%clk 0:02:46.4]} 9. d3 {[%clk 0:02:39.6]} 9... O-O {[%clk 0:02:45.7]}
10. Nd2 {[%clk 0:02:37.2]} 10... h6 {[%clk 0:02:46.1]} 11. O-O {[%clk
0:02:36.9]} 11... Nxe5 {[%clk 0:02:39.6]} 12. Bxe5 {[%clk 0:02:33.7]} 12... Bg6
{[%clk 0:02:40.5]} 13. Qc2 {[%clk 0:02:30.1]} 13... Bd6 {[%clk 0:02:38]} 14. Bb2
{[%clk 0:02:29.4]} 14... Rc8 {[%clk 0:02:32]} 15. Nf3 {[%clk 0:02:28.9]} 15...
Re8 {[%clk 0:02:29.7]} 16. Ne5 {[%clk 0:02:27.9]} 16... Bh7 {[%clk 0:02:24.6]}
17. f4 {[%clk 0:02:25.3]} 17... Nd7 {[%clk 0:02:21.6]} 18. e4 {[%clk 0:02:23]}
18... Bxe5 {[%clk 0:02:13.2]} 19. fxe5 {[%clk 0:02:23.9]} 19... dxe4 {[%clk
0:02:13.2]} 20. d4 {[%clk 0:02:17.2]} 20... Qb6 {[%clk 0:01:54.8]} 21. Bxe4
{[%clk 0:02:13.2]} 21... Bxe4 {[%clk 0:01:51.8]} 22. Qxe4 {[%clk 0:02:14.1]}
22... Nf8 {[%clk 0:01:49.4]} 23. Rf2 {[%clk 0:02:08.6]} 23... Red8 {[%clk
0:01:49.9]} 24. Raf1 {[%clk 0:02:08.5]} 24... Rc7 {[%clk 0:01:50.4]} 25. Bc3
{[%clk 0:02:00.8]} 25... Qa6 {[%clk 0:01:45.1]} 26. Qd3 {[%clk 0:01:40.7]} 26...
Rcd7 {[%clk 0:01:40.2]} 27. Bb2 {[%clk 0:01:34.9]} 27... b5 {[%clk 0:01:35.7]}
28. cxb5 {[%clk 0:01:20.7]} 28... Qxb5 {[%clk 0:01:36.6]} 29. Qxb5 {[%clk
0:01:20.6]} 29... cxb5 {[%clk 0:01:35.9]} 30. Rc1 {[%clk 0:01:20.8]} 30... Ng6
{[%clk 0:01:31.6]} 31. Rc5 {[%clk 0:01:19]} 31... a6 {[%clk 0:01:28.9]} 32. Rc6
{[%clk 0:01:19]} 32... Ra8 {[%clk 0:01:26.1]} 33. Rfc2 {[%clk 0:01:19.3]} 33...
Ne7 {[%clk 0:01:22.2]} 34. R6c5 {[%clk 0:01:10.6]} 34... Nd5 {[%clk 0:01:21.9]}
35. Rc8+ {[%clk 0:01:09.7]} 35... Rxc8 {[%clk 0:01:18.5]} 36. Rxc8+ {[%clk
0:01:10.6]} 36... Kh7 {[%clk 0:01:19.2]} 37. Ra8 {[%clk 0:01:11]} 37... Ne3
{[%clk 0:01:16.5]} 38. Rxa6 {[%clk 0:01:06.3]} 38... Nc2 {[%clk 0:01:14.7]} 39.
Rd6 {[%clk 0:01:05.1]} 39... Nxd4 {[%clk 0:01:15.3]} 40. Bxd4 {[%clk 0:01:02.6]}
40... Rc7 {[%clk 0:01:12.8]} 41. Bc5 {[%clk 0:01:02.4]} 1-0

[Event "Early-Titled-Tuesday-Blitz-April-16-2024"]
[Site "Chess.com"]
[Date "2024.04.16"]
[Round "6"]
[White "BardArtem"]
[Black "OparinGrigoriy"]
[Result "0-1"]
[WhiteElo "2855"]
[BlackElo "2991"]
[TimeControl "180+1"]
[EndTime "9:06:32 PDT"]
[Termination "OparinGrigoriy won by resignation"]

1. e4 {[%clk 0:03:00.9]} 1... c6 {[%clk 0:02:59.8]} 2. d4 {[%clk 0:02:58]} 2...
d5 {[%clk 0:03:00.4]} 3. exd5 {[%clk 0:02:58.8]} 3... cxd5 {[%clk 0:03:01.3]} 4.
Bd3 {[%clk 0:02:58.8]} 4... Nc6 {[%clk 0:03:00.9]} 5. c3 {[%clk 0:02:59.4]} 5...
Nf6 {[%clk 0:02:59.6]} 6. Nf3 {[%clk 0:02:59.5]} 6... Bg4 {[%clk 0:02:59.8]} 7.
O-O {[%clk 0:02:59.1]} 7... e6 {[%clk 0:03:00]} 8. Bf4 {[%clk 0:02:59.8]} 8...
Bd6 {[%clk 0:03:00.2]} 9. Bxd6 {[%clk 0:03:00.4]} 9... Qxd6 {[%clk 0:03:01.1]}
10. Nbd2 {[%clk 0:03:01.1]} 10... O-O {[%clk 0:03:01.4]} 11. Qe1 {[%clk
0:03:01.7]} 11... Bf5 {[%clk 0:02:50.1]} 12. Bxf5 {[%clk 0:02:58.2]} 12... exf5
{[%clk 0:02:51]} 13. Qb1 {[%clk 0:02:55]} 13... Ne4 {[%clk 0:02:49.8]} 14. Re1
{[%clk 0:02:51.7]} 14... Rfe8 {[%clk 0:02:49.9]} 15. Nf1 {[%clk 0:02:46.2]}
15... Re7 {[%clk 0:02:48.1]} 16. Qd3 {[%clk 0:02:43.4]} 16... Rae8 {[%clk
0:02:47.8]} 17. Ne3 {[%clk 0:02:43.6]} 17... g6 {[%clk 0:02:45.3]} 18. Qb5
{[%clk 0:02:41.3]} 18... Nf6 {[%clk 0:02:45.1]} 19. h3 {[%clk 0:02:36.4]} 19...
f4 {[%clk 0:02:41.2]} 20. Ng4 {[%clk 0:02:29.4]} 20... Ne4 {[%clk 0:02:37.9]}
21. Nge5 {[%clk 0:01:58.2]} 21... f6 {[%clk 0:02:32.5]} 22. Nxc6 {[%clk
0:01:53.9]} 22... bxc6 {[%clk 0:02:33.4]} 23. Qd3 {[%clk 0:01:52.5]} 23... g5
{[%clk 0:02:32.7]} 24. Nd2 {[%clk 0:01:40.4]} 24... Kg7 {[%clk 0:02:23.5]} 25.
Nb3 {[%clk 0:01:26.1]} 25... h5 {[%clk 0:02:21.3]} 26. f3 {[%clk 0:00:48.9]}
26... Ng3 {[%clk 0:02:19.9]} 27. Kf2 {[%clk 0:00:49.3]} 27... Re3 {[%clk
0:02:06.3]} 28. Qd2 {[%clk 0:00:40]} 28... Qe7 {[%clk 0:01:49.8]} 29. Rac1
{[%clk 0:00:17.2]} 29... Re2+ {[%clk 0:01:41.7]} 30. Rxe2 {[%clk 0:00:11.5]}
30... Qxe2+ {[%clk 0:01:42.6]} 31. Qxe2 {[%clk 0:00:12.1]} 31... Rxe2+ {[%clk
0:01:43.5]} 32. Kg1 {[%clk 0:00:12.8]} 32... Rxb2 {[%clk 0:01:43.4]} 33. c4
{[%clk 0:00:11.3]} 33... Ne2+ {[%clk 0:01:43.5]} 0-1

[Event "Early-Titled-Tuesday-Blitz-April-16-2024"]
[Site "Chess.com"]
[Date "2024.04.16"]
[Round "6"]
[White "Stanbad1"]
[Black "CarlosjPineror"]
[Result "1-0"]
[WhiteElo "2583"]
[BlackElo "2717"]
[TimeControl "180+1"]
[EndTime "9:06:35 PDT"]
[Termination "Stanbad1 won by resignation"]

1. d4 {[%clk 0:03:00.9]} 1... Nf6 {[%clk 0:02:59.2]} 2. Nc3 {[%clk 0:03:01.3]}
2... d5 {[%clk 0:02:57.2]} 3. Bf4 {[%clk 0:03:01.8]} 3... c5 {[%clk 0:02:54.6]}
4. e4 {[%clk 0:03:01.8]} 4... cxd4 {[%clk 0:02:23.5]} 5. Qxd4 {[%clk 0:02:59.9]}
5... Nc6 {[%clk 0:02:19.3]} 6. Bb5 {[%clk 0:02:59.5]} 6... dxe4 {[%clk
0:02:08.1]} 7. Qxd8+ {[%clk 0:02:50.8]} 7... Kxd8 {[%clk 0:02:09]} 8. O-O-O+
{[%clk 0:02:50.2]} 8... Bd7 {[%clk 0:01:49.7]} 9. Nge2 {[%clk 0:02:49.4]} 9...
Ke8 {[%clk 0:01:41.7]} 10. Ng3 {[%clk 0:02:46.3]} 10... a6 {[%clk 0:01:35.5]}
11. Be2 {[%clk 0:02:45.7]} 11... e5 {[%clk 0:01:16.9]} 12. Bg5 {[%clk
0:02:43.9]} 12... Be6 {[%clk 0:00:44.6]} 13. Ngxe4 {[%clk 0:02:34.2]} 13... Nxe4
{[%clk 0:00:40.8]} 14. Nxe4 {[%clk 0:02:35.1]} 14... f6 {[%clk 0:00:40.3]} 15.
Be3 {[%clk 0:02:33.4]} 15... Be7 {[%clk 0:00:38.6]} 16. Bc5 {[%clk 0:02:30.5]}
16... Kf7 {[%clk 0:00:36.1]} 17. Bxe7 {[%clk 0:02:28.7]} 17... Kxe7 {[%clk
0:00:36.4]} 18. Nc5 {[%clk 0:02:28.4]} 18... Rab8 {[%clk 0:00:34.3]} 19. c3
{[%clk 0:02:23.1]} 19... Rhd8 {[%clk 0:00:26.2]} 20. Bf3 {[%clk 0:02:20.4]}
20... Rxd1+ {[%clk 0:00:22.4]} 21. Rxd1 {[%clk 0:02:19.8]} 21... Nd8 {[%clk
0:00:21.9]} 22. b3 {[%clk 0:02:16.4]} 22... a5 {[%clk 0:00:20.4]} 23. Kb2 {[%clk
0:02:16.4]} 23... b6 {[%clk 0:00:20.3]} 24. Ne4 {[%clk 0:01:55.8]} 24... Rc8
{[%clk 0:00:17]} 25. Nd6 {[%clk 0:01:54.8]} 25... Rc7 {[%clk 0:00:16.9]} 26. c4
{[%clk 0:01:54.7]} 26... Rd7 {[%clk 0:00:16.9]} 27. Nc8+ {[%clk 0:01:52.6]}
27... Ke8 {[%clk 0:00:17.3]} 28. Rxd7 {[%clk 0:01:52]} 28... Bxd7 {[%clk
0:00:17.7]} 29. Nxb6 {[%clk 0:01:52.4]} 29... Bc6 {[%clk 0:00:18.6]} 30. Nd5
{[%clk 0:01:50.7]} 30... Bxd5 {[%clk 0:00:18.3]} 31. Bxd5 {[%clk 0:01:51.6]}
31... Ke7 {[%clk 0:00:18.9]} 32. Kc3 {[%clk 0:01:51.3]} 32... Kd6 {[%clk
0:00:19.8]} 33. a3 {[%clk 0:01:51.3]} 33... h5 {[%clk 0:00:14.7]} 34. b4 {[%clk
0:01:51.1]} 34... h4 {[%clk 0:00:15.6]} 35. Kd3 {[%clk 0:01:48.9]} 35... f5
{[%clk 0:00:15]} 36. g3 {[%clk 0:01:48]} 36... g5 {[%clk 0:00:14.8]} 37. f3
{[%clk 0:01:44.6]} 37... h3 {[%clk 0:00:14]} 38. g4 {[%clk 0:01:44.8]} 38...
fxg4 {[%clk 0:00:13.2]} 39. fxg4 {[%clk 0:01:45.4]} 39... Kc7 {[%clk 0:00:11.9]}
40. Ke4 {[%clk 0:01:44.7]} 1-0

[Event "Early-Titled-Tuesday-Blitz-April-16-2024"]
[Site "Chess.com"]
[Date "2024.04.16"]
[Round "6"]
[White "mishanick"]
[Black "Alen_Yeremyann"]
[Result "1-0"]
[WhiteElo "3060"]
[BlackElo "2828"]
[TimeControl "180+1"]
[EndTime "9:06:37 PDT"]
[Termination "mishanick won by resignation"]

1. d4 {[%clk 0:03:00.9]} 1... Nf6 {[%clk 0:02:59.9]} 2. c4 {[%clk 0:03:01.5]}
2... g6 {[%clk 0:03:00.3]} 3. Nc3 {[%clk 0:03:02.1]} 3... d5 {[%clk 0:03:01]} 4.
Bg5 {[%clk 0:03:01.9]} 4... Bg7 {[%clk 0:03:00.4]} 5. Bxf6 {[%clk 0:03:02.4]}
5... Bxf6 {[%clk 0:03:01]} 6. cxd5 {[%clk 0:03:03.1]} 6... c6 {[%clk 0:03:00.8]}
7. e4 {[%clk 0:03:00.3]} 7... cxd5 {[%clk 0:02:59.4]} 8. Bb5+ {[%clk 0:03:00.2]}
8... Bd7 {[%clk 0:02:57.1]} 9. Bxd7+ {[%clk 0:03:00.4]} 9... Nxd7 {[%clk
0:02:55.2]} 10. Nxd5 {[%clk 0:03:00.7]} 10... Bg7 {[%clk 0:02:55]} 11. Nf3
{[%clk 0:02:55.1]} 11... O-O {[%clk 0:02:55.6]} 12. O-O {[%clk 0:02:54.8]} 12...
e6 {[%clk 0:02:52.7]} 13. Nc3 {[%clk 0:02:54.9]} 13... a6 {[%clk 0:02:52.1]} 14.
Qd2 {[%clk 0:02:54.1]} 14... b5 {[%clk 0:02:51.9]} 15. Rad1 {[%clk 0:02:54.7]}
15... Nb6 {[%clk 0:02:51.5]} 16. b3 {[%clk 0:02:55.2]} 16... b4 {[%clk
0:02:50.2]} 17. Ne2 {[%clk 0:02:54.5]} 17... a5 {[%clk 0:02:50.8]} 18. Ng3
{[%clk 0:02:54.3]} 18... Rc8 {[%clk 0:02:48.6]} 19. h4 {[%clk 0:02:55]} 19...
Rc3 {[%clk 0:02:47]} 20. h5 {[%clk 0:02:54.5]} 20... Qc7 {[%clk 0:02:46.7]} 21.
h6 {[%clk 0:02:53.2]} 21... Bh8 {[%clk 0:02:46.8]} 22. Rc1 {[%clk 0:02:46.4]}
22... Rc8 {[%clk 0:02:46.2]} 23. Ne2 {[%clk 0:02:47]} 23... Rc2 {[%clk
0:02:39.9]} 24. Qg5 {[%clk 0:02:44.9]} 24... Qd6 {[%clk 0:01:43.7]} 25. e5
{[%clk 0:02:33]} 25... Qd7 {[%clk 0:01:39.8]} 26. Ng3 {[%clk 0:02:26.5]} 26...
Nd5 {[%clk 0:01:33.8]} 27. Ne4 {[%clk 0:02:22.7]} 27... Qe7 {[%clk 0:01:20.7]}
28. Qd2 {[%clk 0:01:56.2]} 28... R2c6 {[%clk 0:01:13.6]} 29. Nd6 {[%clk
0:01:53.6]} 29... R8c7 {[%clk 0:01:12]} 30. Rc4 {[%clk 0:01:51.5]} 30... Rxd6
{[%clk 0:01:02]} 31. exd6 {[%clk 0:01:51.2]} 31... Qxd6 {[%clk 0:01:02.3]} 32.
a3 {[%clk 0:01:44.5]} 32... Bf6 {[%clk 0:00:54.7]} 33. axb4 {[%clk 0:01:43.7]}
33... axb4 {[%clk 0:00:55]} 34. Rxc7 {[%clk 0:01:42.9]} 34... Qxc7 {[%clk
0:00:48.1]} 35. Ra1 {[%clk 0:01:43.1]} 35... Qb7 {[%clk 0:00:43.8]} 36. Qd3
{[%clk 0:01:39.9]} 36... Nf4 {[%clk 0:00:37.9]} 37. Qa6 {[%clk 0:01:38.4]} 37...
Qxa6 {[%clk 0:00:33.5]} 38. Rxa6 {[%clk 0:01:39.3]} 38... Kf8 {[%clk 0:00:34.2]}
39. Rb6 {[%clk 0:01:36.7]} 39... Nd5 {[%clk 0:00:33.5]} 40. Rb8+ {[%clk
0:01:36.3]} 40... Ke7 {[%clk 0:00:34.2]} 41. Rb7+ {[%clk 0:01:36.7]} 41... Ke8
{[%clk 0:00:32.7]} 42. Ne5 {[%clk 0:01:37.6]} 42... Be7 {[%clk 0:00:27.8]} 43.
Rb8+ {[%clk 0:01:36.8]} 1-0

[Event "Early-Titled-Tuesday-Blitz-April-16-2024"]
[Site "Chess.com"]
[Date "2024.04.16"]
[Round "6"]
[White "Denisenko_Denis"]
[Black "H3nriqueTV"]
[Result "1-0"]
[WhiteElo "2435"]
[BlackElo "2294"]
[TimeControl "180+1"]
[EndTime "9:06:42 PDT"]
[Termination "Denisenko_Denis won by resignation"]

1. d4 {[%clk 0:03:00.9]} 1... d5 {[%clk 0:02:58.6]} 2. Bf4 {[%clk 0:03:00.6]}
2... c6 {[%clk 0:02:59.2]} 3. e3 {[%clk 0:03:00.7]} 3... Nf6 {[%clk 0:02:59.9]}
4. Nf3 {[%clk 0:02:59.9]} 4... Bg4 {[%clk 0:02:59.1]} 5. c4 {[%clk 0:02:59.5]}
5... e6 {[%clk 0:02:59.5]} 6. Be2 {[%clk 0:02:59.3]} 6... Bd6 {[%clk 0:02:59]}
7. Bg5 {[%clk 0:02:58.9]} 7... Nbd7 {[%clk 0:02:58.2]} 8. Qb3 {[%clk 0:02:57.9]}
8... b6 {[%clk 0:02:53.6]} 9. Nc3 {[%clk 0:02:57.9]} 9... O-O {[%clk 0:02:53.5]}
10. O-O {[%clk 0:02:57]} 10... h6 {[%clk 0:02:53.1]} 11. Bh4 {[%clk 0:02:56.5]}
11... Rc8 {[%clk 0:02:44.8]} 12. Rfd1 {[%clk 0:02:50]} 12... Qc7 {[%clk
0:02:44.7]} 13. Bg3 {[%clk 0:02:44.5]} 13... Bxg3 {[%clk 0:02:41.4]} 14. hxg3
{[%clk 0:02:45.4]} 14... dxc4 {[%clk 0:02:36.2]} 15. Bxc4 {[%clk 0:02:43.9]}
15... e5 {[%clk 0:02:28.9]} 16. Ba6 {[%clk 0:02:26.6]} 16... Rcd8 {[%clk
0:02:23.6]} 17. dxe5 {[%clk 0:02:19.9]} 17... Bxf3 {[%clk 0:02:14.3]} 18. gxf3
{[%clk 0:02:18.2]} 18... Nxe5 {[%clk 0:02:14.7]} 19. Be2 {[%clk 0:02:16.6]}
19... Qc8 {[%clk 0:02:12.2]} 20. Kg2 {[%clk 0:02:15.8]} 20... Qf5 {[%clk
0:02:02.8]} 21. Rxd8 {[%clk 0:02:14]} 21... Rxd8 {[%clk 0:02:02.8]} 22. Rd1
{[%clk 0:02:14.5]} 22... Re8 {[%clk 0:01:54.4]} 23. Qa4 {[%clk 0:02:06.2]} 23...
Nh7 {[%clk 0:01:50.9]} 24. f4 {[%clk 0:02:01]} 24... b5 {[%clk 0:01:40.7]} 25.
Qxa7 {[%clk 0:01:49.7]} 25... Ng4 {[%clk 0:01:39.6]} 26. Qd7 {[%clk 0:01:45.5]}
26... Re6 {[%clk 0:01:33.8]} 27. e4 {[%clk 0:01:32.6]} 27... Qh5 {[%clk
0:00:40.9]} 28. Rh1 {[%clk 0:01:30.1]} 28... Qg6 {[%clk 0:00:25.8]} 29. f5
{[%clk 0:01:26.4]} 29... Qf6 {[%clk 0:00:25.9]} 30. Bxg4 {[%clk 0:01:20.5]}
30... Rd6 {[%clk 0:00:22.8]} 31. Qe8+ {[%clk 0:01:16.8]} 31... Nf8 {[%clk
0:00:21.2]} 32. e5 {[%clk 0:01:16.8]} 32... Rd8 {[%clk 0:00:20.5]} 33. exf6
{[%clk 0:01:16.4]} 33... Rxe8 {[%clk 0:00:21.1]} 34. fxg7 {[%clk 0:01:15.6]}
34... Kxg7 {[%clk 0:00:22]} 1-0